[Event "EYCC Open-U16 2019"]
[Site "Bratislava"]
[Date "2019.08.06"]
[Round "5.8"]
[White "Juksta, Karolis"]
[Black "Suvorov, Alexander"]
[Result "1-0"]
[ECO "E46"]
[WhiteElo "2261"]
[BlackElo "2333"]
[Annotator "NA"]
[PlyCount "163"]
[EventDate "2019.08.02"]
[EventType "swiss"]
[EventCountry "SVK"]
[SourceTitle "playchess.com"]
[Source "ChessBase"]
[SourceQuality "1"]
[TimeControl "40/5400+30:1800+30"]

1. d4 {[%emt 0:00:00]} Nf6 {[%emt 0:00:00]} 2. c4 {[%emt 0:00:00]} e6 {[%emt 0:00:00]} 3. Nc3 {[%emt 0:00:00]} Bb4 {[%emt 0:00:18]} 4. e3 {[%emt 0:01:09]} O-O {[%emt 0:00:14]} 5. Nge2 {[%emt 0:00:29]} Re8 {[%emt 0:00:15]} 6. a3 {[%emt 0:01:13]} Bf8 {[%emt 0:00:13]} 7. Ng3 {[%emt 0:00:18]} d5 {[%emt 0:00:33]} 8. cxd5 {[%emt 0:05:55]} exd5 {[%emt 0:00:33]} 9. Bd3 {[%emt 0:04:10]} a5 {[%emt 0:05:26]} 10. O-O {[%emt 0:02:05]} c6 {[%emt 0:01:34]} 11. Rb1 {[%emt 0:08:54]} Na6 {[%emt 0:06:01]} 12. Qc2 {[%emt 0:01:33]} g6 {[%emt 0:01:56]} 13. Bd2 {[%emt 0:03:48]} Bd7 {[%emt 0:21:19]} 14. Nce2 {[%emt 0:04:48]} Nc7 {[%emt 0:07:56]} 15. b4 {[%emt 0:07:24]} a4 {[%emt 0:02:06]} 16. f3 {[%emt 0:10:54]} Nb5 {[%emt 0:05:10]} 17. Bxb5 {[%emt 0:04:41]} cxb5 {[%emt 0:00:09]} 18. Qd3 {[%emt 0:03:13]} h5 {[%emt 0:03:52]} 19. Rbc1 {[%emt 0:02:18]} Qb6 {[%emt 0:05:43]} 20. Nc3 {[%emt 0:04:09]} Bg7 {[%emt 0:02:08]} 21. Kh1 {[%emt 0:07:31]} Rac8 {[%emt 0:07:55]} 22. e4 {[%emt 0:04:41]} h4 {[%emt 0:04:49]} 23. Nge2 {[%emt 0:00:32]} dxe4 {[%emt 0:01:08]} 24. fxe4 {[%emt 0:00:47]} h3 {[%emt 0:00:48]} 25. Bg5 {[%emt 0:05:55]} hxg2+ {[%emt 0:02:31]} 26. Kxg2 {[%emt 0:00:02]} Qe6 {[%emt 0:01:34]} 27. e5 {[%emt 0:10:22]} Bc6+ {[%emt 0:05:17]} 28. Kg1 {[%emt 0:00:21]} Nd5 {[%emt 0:03:44]} 29. h3 {[%emt 0:01:44]} Nxc3 {[%emt 0:02:09]} 30. Nxc3 {[%emt 0:00:46]} Bd5 {[%emt 0:01:20]} 31. Qe3 {[%emt 0:02:18]} Bc4 {[%emt 0:02:19]} 32. Rf3 {[%emt 0:00:37]} Bd5 {[%emt 0:02:42]} 33. Rf2 {[%emt 0:01:41]} Bc4 {[%emt 0:01:28]} 34. Ne4 {[%emt 0:00:43]} Bd5 {[%emt 0:01:11]} 35. Nf6+ {[%emt 0:01:01]} Bxf6 {[%emt 0:00:09]} 36. Rxc8 {[%emt 0:00:11]} Rxc8 {[%emt 0:00:51]} 37. Bxf6 {[%emt 0:00:11]} Kf8 {[%emt 0:01:04]} 38. Bh4 {[%emt 0:01:45]} Kg7 {[%emt 0:01:21]} 39. Bf6+ {[%emt 0:00:32]} Kf8 {[%emt 0:00:04]} 40. Bh4 Kg7 {[%emt 0:00:00]} 41. Rf6 {[%emt 0:16:00]} Qd7 {[%emt 0:10:10]} 42. Rd6 {[%emt 0:04:39]} Qf5 {[%emt 0:00:35]} 43. Rxd5 {[%emt 0:00:20]} Qb1+ {[%emt 0:00:57]} 44. Be1 {[%emt 0:00:19]} Rc1 {[%emt 0:01:50]} 45. Kf1 {[%emt 0:00:34]} Qf5+ {[%emt 0:01:11]} 46. Kg2 {[%emt 0:02:06]} Rd1 {[%emt 0:16:15]} 47. Qf3 {[%emt 0:06:15]} Qxf3+ {[%emt 0:00:37]} 48. Kxf3 {[%emt 0:00:02]} Rxe1 {[%emt 0:00:02]} 49. Rxb5 {[%emt 0:00:10]} Ra1 {[%emt 0:00:03]} 50. Rxb7 {[%emt 0:00:12]} Rxa3+ {[%emt 0:00:02]} 51. Ke4 {[%emt 0:00:59]} Kf8 {[%emt 0:00:31]} 52. Ra7 {[%emt 0:00:30]} Ra1 {[%emt 0:00:59]} 53. b5 {[%emt 0:03:06]} Rb1 {[%emt 0:01:21]} 54. Rxa4 {[%emt 0:00:45]} Rxb5 {[%emt 0:00:02]} 55. Ra3 {[%emt 0:00:01]} Ke7 {[%emt 0:00:44]} 56. Rf3 {[%emt 0:00:39]} Rb1 {[%emt 0:01:00]} 57. Kd5 {[%emt 0:00:53]} Rd1 {[%emt 0:00:16]} 58. Ra3 {[%emt 0:00:22]} Kf8 {[%emt 0:01:59]} 59. Kc5 {[%emt 0:00:26]} Ke7 {[%emt 0:00:22]} 60. Kd5 {[%emt 0:00:58]} Kf8 {[%emt 0:01:04]} 61. Rb3 {[%emt 0:01:10]} Rd2 {[%emt 0:00:27]} 62. Rc3 {[%emt 0:00:40]} Rd1 {[%emt 0:00:09]} 63. Rf3 {[%emt 0:00:45]} Ke7 {[%emt 0:00:08]} 64. Re3 {[%emt 0:00:11]} Kd7 {[%emt 0:01:25]} 65. Rg3 {[%emt 0:00:42]} Ke7 {[%emt 0:00:10]} 66. Re3 {[%emt 0:00:55]} Kd7 {[%emt 0:00:15]} 67. Re4 {[%emt 0:00:17]} Ra1 {[%emt 0:00:31]} 68. Rf4 {[%emt 0:00:17]} Ke7 {[%emt 0:00:18]} 69. h4 {[%emt 0:00:17]} Rh1 {[%emt 0:00:33]} 70. Rg4 {[%emt 0:00:21]} Rh2 {[%emt 0:00:19]} 71. Ke4 {[%emt 0:00:27]} Rh1 {[%emt 0:01:10]} 72. Kf4 {[%emt 0:00:25]} Ke6 {[%emt 0:00:18]} 73. Kg5 {[%emt 0:00:30]} Rh2 {[%emt 0:00:22]} 74. Rf4 {[%emt 0:00:53]} Ra2 {[%emt 0:02:07]} 75. Kh6 {[%emt 0:00:26]} Ra7 {[%emt 0:00:18]} 76. Rf6+ {[%emt 0:00:58]} Ke7 {[%emt 0:00:30]} 77. Kg7 {[%emt 0:00:17]} Ke8 {[%emt 0:00:11]} 78. e6 {[%emt 0:00:59]} fxe6+ {[%emt 0:00:45]} 79. Kxg6 {[%emt 0:00:01]} Re7 {[%emt 0:00:48]} 80. h5 {[%emt 0:00:29]} e5 {[%emt 0:00:19]} 81. h6 {[%emt 0:00:17]} exd4 {[%emt 0:00:38]} 82. h7 {[%emt 0:00:04]} 1-0

[Event "EYCC Open-U16 2019"]
[Site "Bratislava"]
[Date "2019.08.06"]
[Round "5.9"]
[White "Milosevic, Milos"]
[Black "Svanda, Ondrej"]
[Result "1-0"]
[ECO "B23"]
[WhiteElo "2312"]
[BlackElo "2234"]
[Annotator "NA"]
[PlyCount "57"]
[EventDate "2019.08.02"]
[EventType "swiss"]
[EventCountry "SVK"]
[SourceTitle "playchess.com"]
[Source "ChessBase"]
[SourceQuality "1"]
[TimeControl "40/5400+30:1800+30"]

1. e4 {[%emt 0:00:00]} c5 {[%emt 0:00:00]} 2. Nc3 {[%emt 0:00:00]} Nc6 {[%emt 0:00:00]} 3. f4 {[%emt 0:00:00]} g6 {[%emt 0:00:00]} 4. Nf3 {[%emt 0:00:00]} Bg7 {[%emt 0:00:04]} 5. a3 {[%emt 0:02:43]} e6 {[%emt 0:08:22]} 6. b4 {[%emt 0:00:12]} b6 {[%emt 0:00:22]} 7. e5 {[%emt 0:01:54]} d6 {[%emt 0:07:19]} 8. Bb5 {[%emt 0:12:08]} Nge7 {[%emt 0:02:17]} 9. Ne4 {[%emt 0:05:32]} dxe5 {[%emt 0:05:05]} 10. fxe5 {[%emt 0:02:17]} O-O {[%emt 0:01:18]} 11. Nf6+ {[%emt 0:00:47]} Kh8 {[%emt 0:00:33]} 12. Bb2 {[%emt 0:01:22]} Nd4 {[%emt 0:05:57]} 13. Nxd4 {[%emt 0:01:52]} cxd4 {[%emt 0:00:29]} 14. Qf3 {[%emt 0:06:54]} Rb8 {[%emt 0:04:10]} 15. O-O {[%emt 0:03:07]} a6 {[%emt 0:04:39]} 16. Bd3 {[%emt 0:00:12]} Nf5 {[%emt 0:20:07]} 17. Qf4 {[%emt 0:07:45]} Bb7 {[%emt 0:02:33]} 18. Rae1 {[%emt 0:13:49]} Rc8 {[%emt 0:10:03]} 19. Re2 {[%emt 0:15:39]} Bh6 {[%emt 0:05:41]} 20. Qg4 {[%emt 0:02:09]} Bg7 {[%emt 0:03:52]} 21. Rf4 {[%emt 0:01:30]} Qc7 {[%emt 0:04:31]} 22. g3 {[%emt 0:09:58]} Rfd8 {[%emt 0:03:12]} 23. Qh3 {[%emt 0:02:23]} h6 {[%emt 0:02:19]} 24. Bxf5 {[%emt 0:04:55]} g5 {[%emt 0:03:11]} 25. Rf1 {[%emt 0:01:05]} exf5 {[%emt 0:01:40]} 26. Qxf5 {[%emt 0:00:04]} Bxf6 {[%emt 0:00:58]} 27. Qxf6+ {[%emt 0:00:03]} Kg8 {[%emt 0:00:11]} 28. e6 {[%emt 0:00:55]} fxe6 {[%emt 0:02:03]} 29. Qxe6+ {[%emt 0:00:19]} 1-0

[Event "EYCC Open-U16 2019"]
[Site "Bratislava"]
[Date "2019.08.06"]
[Round "5.10"]
[White "Sjoberg, Isak"]
[Black "Dudin, Gleb"]
[Result "0-1"]
[ECO "B15"]
[WhiteElo "2182"]
[BlackElo "2283"]
[Annotator "NA"]
[PlyCount "92"]
[EventDate "2019.08.02"]
[EventType "swiss"]
[EventCountry "SVK"]
[SourceTitle "playchess.com"]
[Source "ChessBase"]
[SourceQuality "1"]
[TimeControl "40/5400+30:1800+30"]

1. e4 {[%emt 0:00:16]} c6 {[%emt 0:00:33]} 2. d4 {[%emt 0:00:31]} d5 {[%emt 0:00:08]} 3. Nc3 {[%emt 0:00:41]} a6 {[%emt 0:00:32]} 4. Nf3 {[%emt 0:04:20]} Bg4 {[%emt 0:00:29]} 5. Be2 {[%emt 0:06:18]} e6 {[%emt 0:00:33]} 6. O-O {[%emt 0:01:51]} Nf6 {[%emt 0:03:21]} 7. Bg5 {[%emt 0:11:00]} Be7 {[%emt 0:09:16]} 8. e5 {[%emt 0:20:13]} Nfd7 {[%emt 0:05:04]} 9. Bxe7 {[%emt 0:00:14]} Qxe7 {[%emt 0:00:06]} 10. Ne1 {[%emt 0:04:38]} Bf5 {[%emt 0:04:46]} 11. g4 {[%emt 0:09:02]} Bg6 {[%emt 0:03:26]} 12. f4 {[%emt 0:00:29]} h6 {[%emt 0:01:51]} 13. f5 {[%emt 0:04:04]} Bh7 {[%emt 0:06:29]} 14. fxe6 {[%emt 0:04:37]} fxe6 {[%emt 0:13:08]} 15. Bd3 {[%emt 0:03:09]} g5 {[%emt 0:25:20]} 16. b4 {[%emt 0:07:32]} Qxb4 {[%emt 0:10:31]} 17. Bxh7 {[%emt 0:00:23]} Rxh7 {[%emt 0:00:05]} 18. Qd3 {[%emt 0:00:18]} Qe7 {[%emt 0:00:07]} 19. Rb1 {[%emt 0:03:33]} b5 {[%emt 0:01:14]} 20. Qg6+ {[%emt 0:02:33]} Kd8 {[%emt 0:00:35]} 21. Nd3 {[%emt 0:00:19]} Kc7 {[%emt 0:01:38]} 22. a4 {[%emt 0:00:28]} Rg7 {[%emt 0:04:54]} 23. Qh5 {[%emt 0:02:51]} Nb6 {[%emt 0:04:51]} 24. Rf2 {[%emt 0:05:21]} N8d7 {[%emt 0:00:42]} 25. Rbf1 {[%emt 0:01:56]} Rf8 {[%emt 0:00:34]} 26. Rxf8 {[%emt 0:00:33]} Nxf8 {[%emt 0:00:00]} 27. Qxh6 {[%emt 0:01:29]} Nbd7 {[%emt 0:01:22]} 28. Qh3 {[%emt 0:00:51]} Ng6 {[%emt 0:01:34]} 29. axb5 {[%emt 0:00:06]} axb5 {[%emt 0:00:36]} 30. Qe3 {[%emt 0:00:58]} Nh4 {[%emt 0:00:41]} 31. Ra1 {[%emt 0:00:57]} Kb7 {[%emt 0:00:16]} 32. Nc5+ {[%emt 0:01:28]} Nxc5 {[%emt 0:00:19]} 33. dxc5 {[%emt 0:01:18]} d4 {[%emt 0:00:34]} 34. Qc1 {[%emt 0:00:00]} Qxc5 {[%emt 0:00:47]} 35. Ne4 {[%emt 0:00:06]} Qxe5 {[%emt 0:00:27]} 36. Qa3 {[%emt 0:00:19]} Qxe4 {[%emt 0:00:17]} 37. Qa7+ {[%emt 0:01:55]} Kc8 {[%emt 0:00:02]} 38. Qa8+ {[%emt 0:00:11]} Kd7 {[%emt 0:00:18]} 39. Ra7+ {[%emt 0:01:16]} Kd6 {[%emt 0:00:02]} 40. Qd8+ {[%emt 0:00:00]} Kc5 {[%emt 0:00:00]} 41. Qf8+ {[%emt 0:03:14]} Kd5 {[%emt 0:01:50]} 42. c4+ {[%emt 0:00:06]} Kxc4 {[%emt 0:01:30]} 43. Qf1+ {[%emt 0:00:53]} d3 {[%emt 0:00:37]} 44. Qc1+ {[%emt 0:01:50]} Kd5 {[%emt 0:00:30]} 45. Rd7+ {[%emt 0:01:12]} Rxd7 {[%emt 0:00:11]} 46. Qxg5+ {[%emt 0:00:06]} Kd6 {[%emt 0:00:57]} 0-1

[Event "EYCC Open-U16 2019"]
[Site "Bratislava"]
[Date "2019.08.06"]
[Round "5.11"]
[White "Risteski, Emil"]
[Black "Mis, Mieszko"]
[Result "1/2-1/2"]
[ECO "B12"]
[WhiteElo "2150"]
[BlackElo "2284"]
[Annotator "NA"]
[PlyCount "62"]
[EventDate "2019.08.02"]
[EventType "swiss"]
[EventCountry "SVK"]
[SourceTitle "playchess.com"]
[Source "ChessBase"]
[SourceQuality "1"]
[TimeControl "40/5400+30:1800+30"]

1. e4 {[%emt 0:00:00]} c6 {[%emt 0:00:00]} 2. d4 {[%emt 0:00:03]} d5 {[%emt 0:00:00]} 3. e5 {[%emt 0:00:05]} Bf5 {[%emt 0:00:30]} 4. h4 {[%emt 0:00:09]} h6 {[%emt 0:00:37]} 5. g4 {[%emt 0:00:18]} Bd7 {[%emt 0:00:03]} 6. Be3 {[%emt 0:00:28]} e6 {[%emt 0:02:07]} 7. Nc3 {[%emt 0:00:40]} Qb6 {[%emt 0:00:38]} 8. Na4 {[%emt 0:02:37]} Qa5+ {[%emt 0:00:10]} 9. c3 {[%emt 0:00:05]} b6 {[%emt 0:00:11]} 10. b4 {[%emt 0:00:56]} Bxb4 {[%emt 0:00:01]} 11. cxb4 {[%emt 0:00:06]} Qxb4+ {[%emt 0:00:02]} 12. Bd2 {[%emt 0:00:08]} Qxd4 {[%emt 0:00:03]} 13. Nf3 {[%emt 0:00:19]} Qxg4 {[%emt 0:00:04]} 14. h5 {[%emt 0:02:21]} Qe4+ {[%emt 0:44:19]} 15. Be2 {[%emt 0:00:09]} c5 {[%emt 0:04:30]} 16. Rh4 {[%emt 0:13:32]} Bxa4 {[%emt 0:01:59]} 17. Qxa4+ {[%emt 0:00:07]} Qxa4 {[%emt 0:00:05]} 18. Rxa4 {[%emt 0:00:05]} Nc6 {[%emt 0:04:52]} 19. Rb1 {[%emt 0:00:58]} O-O-O {[%emt 0:06:38]} 20. Rg4 {[%emt 0:01:02]} Nge7 {[%emt 0:01:10]} 21. Rxg7 {[%emt 0:00:20]} Rdf8 {[%emt 0:00:25]} 22. Bd3 {[%emt 0:11:12]} f6 {[%emt 0:09:53]} 23. exf6 {[%emt 0:07:01]} Rxf6 {[%emt 0:00:02]} 24. Nh4 {[%emt 0:00:18]} c4 {[%emt 0:03:41]} 25. Ng6 {[%emt 0:02:15]} Nxg6 {[%emt 0:00:54]} 26. Rxg6 {[%emt 0:01:18]} Rf3 {[%emt 0:04:47]} 27. Be2 {[%emt 0:04:23]} Rh3 {[%emt 0:00:13]} 28. Rxe6 {[%emt 0:21:46]} Nd4 {[%emt 0:01:34]} 29. Re7 {[%emt 0:00:33]} Rh1+ {[%emt 0:02:17]} 30. Bf1 {[%emt 0:00:06]} Nf3+ {[%emt 0:00:27]} 31. Ke2 {[%emt 0:00:08]} Nd4+ {[%emt 0:00:04]} 1/2-1/2

[Event "EYCC Open-U16 2019"]
[Site "Bratislava"]
[Date "2019.08.06"]
[Round "5.12"]
[White "Ognean, Mihnea-Ionut"]
[Black "Briem, Stephan"]
[Result "1-0"]
[ECO "B01"]
[WhiteElo "2287"]
[BlackElo "2223"]
[Annotator "NA"]
[PlyCount "63"]
[EventDate "2019.08.02"]
[EventType "swiss"]
[EventCountry "SVK"]
[SourceTitle "playchess.com"]
[Source "ChessBase"]
[SourceQuality "1"]
[TimeControl "40/5400+30:1800+30"]

1. e4 {[%emt 0:00:00]} d5 {[%emt 0:00:00]} 2. exd5 {[%emt 0:00:00]} Qxd5 {[%emt 0:00:22]} 3. Nc3 {[%emt 0:00:00]} Qd6 {[%emt 0:00:33]} 4. d4 {[%emt 0:00:18]} Nf6 {[%emt 0:00:28]} 5. Nf3 {[%emt 0:00:25]} c6 {[%emt 0:00:24]} 6. g3 {[%emt 0:01:20]} Bf5 {[%emt 0:01:10]} 7. Bg2 {[%emt 0:00:09]} h6 {[%emt 0:01:00]} 8. O-O {[%emt 0:00:51]} e6 {[%emt 0:00:39]} 9. Ne2 {[%emt 0:07:22]} Be7 {[%emt 0:07:01]} 10. c4 {[%emt 0:04:53]} O-O {[%emt 0:03:52]} 11. a3 {[%emt 0:05:40]} Qd8 {[%emt 0:06:26]} 12. Nc3 {[%emt 0:05:31]} Nbd7 {[%emt 0:02:13]} 13. Re1 {[%emt 0:04:17]} Rc8 {[%emt 0:11:00]} 14. Bf4 {[%emt 0:13:16]} a6 {[%emt 0:08:34]} 15. Qe2 {[%emt 0:07:46]} b5 {[%emt 0:07:53]} 16. Ne5 {[%emt 0:20:00]} Nxe5 {[%emt 0:11:13]} 17. dxe5 {[%emt 0:00:09]} Nd7 {[%emt 0:00:52]} 18. Rad1 {[%emt 0:01:18]} Qc7 {[%emt 0:00:50]} 19. h4 {[%emt 0:02:03]} Nb6 {[%emt 0:01:48]} 20. Be4 {[%emt 0:10:52]} Bxe4 {[%emt 0:21:55]} 21. Nxe4 {[%emt 0:00:03]} Nxc4 {[%emt 0:06:07]} 22. Nf6+ {[%emt 0:01:07]} Kh8 {[%emt 0:01:33]} 23. Rd7 {[%emt 0:01:04]} Qxd7 {[%emt 0:02:48]} 24. Nxd7 {[%emt 0:00:03]} Rfd8 {[%emt 0:00:07]} 25. Rd1 {[%emt 0:00:49]} Rc7 {[%emt 0:00:28]} 26. Nc5 {[%emt 0:01:26]} Rxd1+ {[%emt 0:01:01]} 27. Qxd1 {[%emt 0:00:03]} Nxb2 {[%emt 0:00:09]} 28. Qd4 {[%emt 0:00:40]} Nc4 {[%emt 0:00:53]} 29. a4 {[%emt 0:01:12]} Na5 {[%emt 0:01:41]} 30. Bd2 {[%emt 0:01:17]} Nc4 {[%emt 0:00:36]} 31. Nxa6 {[%emt 0:01:51]} Rb7 {[%emt 0:00:11]} 32. Bb4 {[%emt 0:00:35]} 1-0

[Event "EYCC Open-U16 2019"]
[Site "Bratislava"]
[Date "2019.08.06"]
[Round "5.13"]
[White "Malovanyi, Yulian"]
[Black "Haring, Filip"]
[Result "1-0"]
[ECO "B31"]
[WhiteElo "2204"]
[BlackElo "2334"]
[Annotator "NA"]
[PlyCount "115"]
[EventDate "2019.08.02"]
[EventType "swiss"]
[EventCountry "SVK"]
[SourceTitle "playchess.com"]
[Source "ChessBase"]
[SourceQuality "1"]
[TimeControl "40/5400+30:1800+30"]

1. e4 {[%emt 0:00:00]} c5 {[%emt 0:00:00]} 2. Nf3 {[%emt 0:00:00]} Nc6 {[%emt 0:00:20]} 3. Bb5 {[%emt 0:01:47]} g6 {[%emt 0:01:22]} 4. Bxc6 {[%emt 0:00:12]} bxc6 {[%emt 0:00:21]} 5. O-O {[%emt 0:01:23]} Bg7 {[%emt 0:00:24]} 6. h3 {[%emt 0:07:54]} Nh6 {[%emt 0:01:39]} 7. c3 {[%emt 0:02:48]} O-O {[%emt 0:03:02]} 8. d4 {[%emt 0:00:28]} Qb6 {[%emt 0:00:27]} 9. Na3 {[%emt 0:06:57]} Ba6 {[%emt 0:08:52]} 10. Re1 {[%emt 0:00:10]} cxd4 {[%emt 0:08:49]} 11. cxd4 {[%emt 0:02:20]} c5 {[%emt 0:07:05]} 12. dxc5 {[%emt 0:08:12]} Qxc5 {[%emt 0:07:48]} 13. Be3 {[%emt 0:10:34]} Qh5 {[%emt 0:01:55]} 14. Bd4 {[%emt 0:06:17]} f6 {[%emt 0:13:28]} 15. Qa4 {[%emt 0:03:15]} Bc8 {[%emt 0:00:05]} 16. Nb5 {[%emt 0:02:06]} g5 {[%emt 0:09:21]} 17. Nxa7 {[%emt 0:05:45]} Kh8 {[%emt 0:15:58]} 18. Qb5 {[%emt 0:02:53]} e5 {[%emt 0:04:34]} 19. Nxc8 {[%emt 0:04:42]} Raxc8 {[%emt 0:02:29]} 20. Be3 {[%emt 0:01:19]} g4 {[%emt 0:00:51]} 21. Bxh6 {[%emt 0:04:48]} Bxh6 {[%emt 0:01:27]} 22. hxg4 {[%emt 0:00:49]} Qxg4 {[%emt 0:00:30]} 23. Nh2 {[%emt 0:01:33]} Qg7 {[%emt 0:05:43]} 24. Rad1 {[%emt 0:01:47]} Bf4 {[%emt 0:01:49]} 25. Nf1 {[%emt 0:03:12]} Rg8 {[%emt 0:01:00]} 26. g3 {[%emt 0:00:24]} Rc2 {[%emt 0:00:59]} 27. Rxd7 {[%emt 0:07:29]} Qh6 {[%emt 0:01:25]} 28. Rd3 {[%emt 0:03:45]} Qg5 {[%emt 0:01:15]} 29. Red1 {[%emt 0:01:38]} f5 {[%emt 0:00:49]} 30. Qb7 {[%emt 0:05:54]} Re2 {[%emt 0:00:39]} 31. Rd7 {[%emt 0:01:12]} Qh6 {[%emt 0:00:03]} 32. Rd8 {[%emt 0:00:42]} Bg5 {[%emt 0:00:55]} 33. Rxg8+ {[%emt 0:00:15]} Kxg8 {[%emt 0:00:04]} 34. Qd5+ {[%emt 0:01:01]} Kf8 {[%emt 0:00:41]} 35. Qc5+ {[%emt 0:00:39]} Be7 {[%emt 0:00:19]} 36. Qc8+ {[%emt 0:01:31]} Kg7 {[%emt 0:00:15]} 37. Qxf5 {[%emt 0:01:52]} Rxb2 {[%emt 0:00:05]} 38. Ne3 {[%emt 0:00:42]} Qf6 {[%emt 0:01:26]} 39. Rd7 {[%emt 0:00:28]} Kh8 {[%emt 0:00:36]} 40. Qxf6+ {[%emt 0:00:00]} Bxf6 {[%emt 0:00:00]} 41. Rf7 {[%emt 0:03:53]} Bg5 {[%emt 0:02:52]} 42. Ng4 {[%emt 0:11:26]} Rxa2 {[%emt 0:01:57]} 43. Rf5 {[%emt 0:00:52]} Bd2 {[%emt 0:02:42]} 44. Rxe5 {[%emt 0:00:34]} Bc3 {[%emt 0:01:03]} 45. Rc5 {[%emt 0:00:47]} Bd4 {[%emt 0:00:19]} 46. Rd5 {[%emt 0:00:04]} Bb6 {[%emt 0:03:02]} 47. Kg2 {[%emt 0:00:35]} Kg8 {[%emt 0:01:48]} 48. Rf5 {[%emt 0:01:48]} Kg7 {[%emt 0:00:40]} 49. Kh3 {[%emt 0:02:43]} Re2 {[%emt 0:01:17]} 50. f3 {[%emt 0:00:21]} Re1 {[%emt 0:00:27]} 51. Nf6 {[%emt 0:02:38]} Kg6 {[%emt 0:01:08]} 52. Kg4 {[%emt 0:01:03]} Rh1 {[%emt 0:01:01]} 53. Nh5 {[%emt 0:00:38]} Bd8 {[%emt 0:02:13]} 54. Nf4+ {[%emt 0:00:26]} Kh6 {[%emt 0:00:07]} 55. Rh5+ {[%emt 0:04:05]} Rxh5 {[%emt 0:00:35]} 56. Nxh5 {[%emt 0:00:06]} Bg5 {[%emt 0:00:00]} 57. f4 {[%emt 0:00:28]} Bd8 {[%emt 0:00:00]} 58. e5 {[%emt 0:01:54]} 1-0

[Event "EYCC Open-U16 2019"]
[Site "Bratislava"]
[Date "2019.08.06"]
[Round "5.14"]
[White "Kacharava, Nikolozi"]
[Black "Timoshin, Andrei"]
[Result "1-0"]
[ECO "B33"]
[WhiteElo "2431"]
[BlackElo "2154"]
[Annotator "NA"]
[PlyCount "84"]
[EventDate "2019.08.02"]
[EventType "swiss"]
[EventCountry "SVK"]
[SourceTitle "playchess.com"]
[Source "ChessBase"]
[SourceQuality "1"]
[TimeControl "40/5400+30:1800+30"]

1. e4 {[%emt 0:00:00]} c5 {[%emt 0:00:00]} 2. Nf3 {[%emt 0:00:00]} Nc6 {[%emt 0:00:11]} 3. d4 {[%emt 0:00:28]} cxd4 {[%emt 0:00:07]} 4. Nxd4 {[%emt 0:00:27]} Nf6 {[%emt 0:00:14]} 5. Nc3 {[%emt 0:00:43]} e5 {[%emt 0:00:13]} 6. Ndb5 {[%emt 0:00:41]} d6 {[%emt 0:00:20]} 7. Bg5 {[%emt 0:00:43]} a6 {[%emt 0:00:13]} 8. Na3 {[%emt 0:00:36]} b5 {[%emt 0:00:09]} 9. Nd5 {[%emt 0:00:39]} Be7 {[%emt 0:00:12]} 10. Bxf6 {[%emt 0:00:38]} Bxf6 {[%emt 0:00:03]} 11. c3 {[%emt 0:00:33]} O-O {[%emt 0:00:28]} 12. Nc2 {[%emt 0:00:46]} Bg5 {[%emt 0:00:26]} 13. a4 {[%emt 0:01:35]} bxa4 {[%emt 0:00:11]} 14. Rxa4 {[%emt 0:02:38]} a5 {[%emt 0:00:28]} 15. h4 {[%emt 0:01:57]} Bh6 {[%emt 0:01:35]} 16. Bc4 {[%emt 0:01:25]} Kh8 {[%emt 0:04:27]} 17. Nce3 {[%emt 0:03:03]} Bxe3 {[%emt 0:04:15]} 18. Nxe3 {[%emt 0:02:28]} Rb8 {[%emt 0:01:31]} 19. b3 {[%emt 0:07:54]} Ne7 {[%emt 0:15:07]} 20. O-O {[%emt 0:08:11]} g6 {[%emt 0:18:56]} 21. Nd5 {[%emt 0:20:13]} Nxd5 {[%emt 0:08:45]} 22. Bxd5 {[%emt 0:07:36]} Qxh4 {[%emt 0:21:05]} 23. Rxa5 {[%emt 0:00:45]} h5 {[%emt 0:03:54]} 24. Ra7 {[%emt 0:04:24]} Qf6 {[%emt 0:00:46]} 25. b4 {[%emt 0:06:34]} Kg7 {[%emt 0:00:59]} 26. Qd2 {[%emt 0:06:20]} g5 {[%emt 0:01:00]} 27. Rfa1 {[%emt 0:04:15]} h4 {[%emt 0:01:40]} 28. Rc7 {[%emt 0:01:56]} Bg4 {[%emt 0:02:03]} 29. Raa7 {[%emt 0:05:51]} Bh5 {[%emt 0:00:10]} 30. c4 {[%emt 0:02:39]} g4 {[%emt 0:08:06]} 31. b5 {[%emt 0:00:54]} h3 {[%emt 0:01:54]} 32. Qe3 {[%emt 0:01:53]} hxg2 {[%emt 0:02:56]} 33. Kxg2 {[%emt 0:00:27]} Bg6 {[%emt 0:00:20]} 34. Rd7 {[%emt 0:05:02]} Rbd8 {[%emt 0:01:38]} 35. Rxd8 {[%emt 0:00:35]} Rxd8 {[%emt 0:01:47]} 36. Ra8 {[%emt 0:00:26]} Rxa8 {[%emt 0:01:12]} 37. Bxa8 {[%emt 0:00:04]} Qd8 {[%emt 0:00:32]} 38. Bd5 {[%emt 0:01:17]} Qh8 {[%emt 0:00:32]} 39. b6 {[%emt 0:00:40]} Kf6 {[%emt 0:00:30]} 40. b7 {[%emt 0:00:00]} Qb8 {[%emt 0:00:00]} 41. Qa3 {[%emt 0:01:48]} Qh8 {[%emt 0:02:41]} 42. Qxd6+ {[%emt 0:01:42]} Kg5 {[%emt 0:00:02]} 1-0